fUSD/lending_fUSD_20260213
["ID","MTS","AMOUNT","RATE_DAILY","PERIOD"]
[405327370,1771003838592,-2226.0,8.837e-05,2]
[405327372,1771003838606,-823.0,8.837e-05,2]
[405327374,1771003838619,-498.0,8.837e-05,2]
[405327376,1771003838633,-9999.99,8.864e-05,2]
[405327379,1771003838645,-150.99,8.864e-05,2]
[405327381,1771003838659,-299.99,8.864e-05,2]
[405327383,1771003838674,-999.99,8.864e-05,2]
[405327386,1771003838691,-9999.99,8.864e-05,2]
[405327388,1771003838704,-9999.99,8.864e-05,2]
[405327391,1771003838718,-600.0,8.9e-05,3]
[405327393,1771003838730,-500.0,8.906e-05,2]
[405327395,1771003838743,-500.0,8.906e-05,2]
[405327397,1771003838756,-500.0,8.906e-05,2]
[405327400,1771003838768,-500.0,8.906e-05,2]
[405327402,1771003838782,-500.0,8.906e-05,2]
[405327404,1771003838794,-500.0,8.906e-05,2]
[405327406,1771003838808,-500.0,8.906e-05,2]
[405327409,1771003838821,-500.0,8.906e-05,2]
[405327411,1771003838833,-500.0,8.906e-05,2]
[405327413,1771003838847,-500.0,8.906e-05,2]
[405327415,1771003838860,-500.0,8.906e-05,2]
[405327418,1771003838876,-500.0,8.906e-05,2]
[405327420,1771003838888,-500.0,8.906e-05,2]
[405327423,1771003838900,-500.0,8.906e-05,2]
[405327425,1771003838912,-648.03928859,8.906e-05,2]
[405327427,1771003838926,-396.27817621,8.906e-05,2]
[405327429,1771003838939,-500.0,8.906e-05,2]
[405327432,1771003838952,-186.15512095,8.907e-05,2]
[405327434,1771003838963,-6735.76981873,8.907e-05,2]
[405327436,1771003838975,-32832.125,8.907e-05,2]
[405327439,1771003838988,-73515.1392,8.907e-05,2]
[405327441,1771003838999,-1500000.0,8.907e-05,2]
[405327443,1771003839011,-701.7303,8.907e-05,2]
[405327445,1771003839022,-878.1502,8.907e-05,2]
[405327448,1771003839035,-342.24761823,8.907e-05,2]
[405327450,1771003839047,-247.81,8.914e-05,2]
[405327452,1771003839059,-325.38,8.97e-05,2]
[405327455,1771003839074,-900.0,9e-05,3]
[405327457,1771003839086,-475563.11327771,9.007e-05,2]
[405327459,1771003839098,-200.0,9.181e-05,2]
[405327460,1771003839109,-500.0,9.223e-05,2]
[405327461,1771003839121,-166.66792853,9.223e-05,2]
[405327462,1771003839134,-500.0,9.223e-05,2]
[405327463,1771003839147,-554.07,9.518e-05,2]
[405327464,1771003839160,-1000.0,9.771e-05,2]
[405327465,1771003839174,-500.0,0.0001,2]
[405327466,1771003839187,-500.0,0.0001,2]
[405327467,1771003839200,-528.99656538,0.0001,2]
[405327468,1771003839213,-500.0,0.0001,2]
[405327469,1771003839225,-522.64508925,0.0001,2]
[405327470,1771003839236,-151.0,0.0001,2]
[405327471,1771003839248,-202.27978627,0.0001,2]
[405327472,1771003839260,-151.0,0.0001,2]
[405327473,1771003839271,-151.0,0.0001,2]
[405327474,1771003839284,-151.0,0.0001,2]
[405327475,1771003839295,-151.0,0.0001,2]
[405327476,1771003839307,-151.0,0.0001,2]
[405327477,1771003839318,-151.0,0.0001,2]
[405327478,1771003839330,-500.0,0.0001,2]
[405327479,1771003839342,-151.0,0.0001,2]
[405327480,1771003839354,-202.81840748,0.0001,2]
[405327481,1771003839367,-151.0,0.0001,2]
[405327482,1771003839379,-151.0,0.0001,2]
[405327483,1771003839391,-151.0,0.0001,2]
[405327484,1771003839402,-151.0,0.0001,2]
[405327485,1771003839414,-151.0,0.0001,2]
[405327486,1771003839433,-151.0,0.0001,2]
[405327487,1771003839450,-151.0,0.0001,2]
[405327488,1771003839465,-151.0,0.0001,2]
[405327489,1771003839478,-151.0,0.0001,2]
[405327490,1771003839491,-151.0,0.0001,2]
[405327491,1771003839504,-151.0,0.0001,2]
[405327492,1771003839517,-153.95643455,0.0001,2]
[405327493,1771003839530,-151.0,0.0001,2]
[405327494,1771003839544,-207.6449656,0.0001,2]
[405327495,1771003839556,-1500.0,0.00010318,2]
[405327496,1771003839569,-554.07,0.00010575,2]
[405327497,1771003839585,-2000.0,0.00010866,2]
[405327498,1771003839599,-193.61,0.000109,2]
[405327499,1771003839611,-166.66,0.00010959,2]
[405327500,1771003839624,-150.0,0.00011046,7]
[405327501,1771003839638,-166.66,0.00011068,2]
[405327502,1771003839653,-45449.83985767,0.00011099,2]
[405327503,1771003839665,-45449.83985767,0.00011099,2]
[405327504,1771003839679,-45449.83985767,0.00011099,2]
[405327505,1771003839691,-45449.83985767,0.00011099,2]
[405327506,1771003839704,-3325.77196052,0.00011099,2]
[405327507,1771003839716,-3325.77196052,0.00011099,2]
[405327508,1771003839728,-3325.77196052,0.00011099,2]
[405327509,1771003839740,-3325.77196052,0.00011099,2]
[405327510,1771003839752,-166.66,0.00011178,2]
[405327511,1771003839764,-7023.72,0.00011233,2]
[405327512,1771003839777,-166.66,0.00011288,2]
[405327513,1771003839791,-1852.42,0.00011292,2]
[405327514,1771003839805,-166.66,0.00011397,2]
[405327515,1771003839819,-1000.0,0.00011503,2]
[405327516,1771003839830,-166.66,0.00011507,2]
[405327517,1771003839841,-3325.77196052,0.00011537,2]
[405327518,1771003839852,-45449.83985767,0.00011589,2]
[405327519,1771003839863,-554.07,0.00011633,2]
[405327520,1771003839873,-7787.46889702,0.00011805,2]
[405327521,1771003839882,-500.0,0.00012342,2]
[405327522,1771003839892,-833.71622659,0.00012623,2]
[405327523,1771003839901,-554.07,0.0001269,2]
[405327524,1771003839911,-3325.77196052,0.00012787,2]
[405327525,1771003839922,-45449.83985767,0.00012851,2]
[405327526,1771003839931,-160.0,0.00013138,2]
[405327527,1771003839941,-6175.81373004,0.00013145,2]
[405327528,1771003839951,-279.05479488,0.00013531,2]
[405327529,1771003839961,-500.0,0.00013698,2]
[405327530,1771003839974,-500.0,0.00013698,2]
[405327531,1771003839983,-500.0,0.00013698,2]
[405327532,1771003839993,-500.0,0.00013698,2]
[405327537,1771003840356,-211.16078222,0.00013698,2]
[405327538,1771003840376,-500.0,0.00013699,2]
[405327539,1771003840386,-6106.16,0.00013699,2]
[405327540,1771003840396,-3325.77196052,0.00014036,2]
[405327541,1771003840406,-45449.83985767,0.00014113,2]
[405327542,1771003840415,-1000.0,0.00014247,2]
[405327543,1771003840425,-1000.0,0.00014751,2]
[405327544,1771003840434,-1500.0,0.00014795,2]
[405327545,1771003840444,-3325.77196052,0.00015285,2]
[405327546,1771003840454,-1378.266199,0.00015342,2]
[405327547,1771003840464,-45449.83985767,0.00015376,2]
[405327548,1771003840474,-1200.0,0.000159,5]
[405327549,1771003840483,-155.34959577,0.00015972,2]
[405327550,1771003840493,-131246.42392946,0.000162,5]
[405327551,1771003840503,-3325.77196052,0.00016535,2]
[405327552,1771003840513,-45449.83985767,0.00016638,2]
[405327553,1771003840522,-5530.0,0.000168,5]
[405327554,1771003840532,-211.58217695,0.000176,2]
[405327555,1771003840542,-278.64031082,0.00017636,2]
[405327556,1771003840552,-500.0,0.00017636,2]
[405327557,1771003840561,-250.0,0.00017636,2]
[405327558,1771003840572,-250.0,0.00017636,2]
[405327559,1771003840584,-308.38013303,0.00017636,2]
[405327560,1771003840594,-398.04903173,0.00017636,2]
[405327561,1771003840603,-256.99686279,0.00017636,2]
[405327562,1771003840613,-557.85,0.00017664,2]
[405327563,1771003840623,-3325.77196052,0.00017784,2]
[405327564,1771003840632,-2430.3478,0.00017784,2]
[405327565,1771003840643,-1600.0,0.000178,6]
[405327566,1771003840653,-5000.0,0.00017808,2]
[405327567,1771003840663,-668.54582473,0.00017826,2]
[405327568,1771003840672,-606554.3591848,0.00017884,2]
[405327569,1771003840682,-19836.1512838,0.00017884,2]
[405327570,1771003840692,-151.0,0.00017884,2]
[405327571,1771003840701,-151.0,0.00017884,2]
[405327572,1771003840710,-151.0,0.00017884,2]
[405327573,1771003840720,-151.0,0.00017884,2]
[405327574,1771003840729,-10000.0,0.000179,2]
[405327575,1771003840739,-300.0,0.000179,6]
[405327576,1771003840748,-45449.83985767,0.000179,2]
[405327577,1771003840758,-1105.913,0.000179,2]
[405327578,1771003840768,-207.6449656,0.0001799,2]
[405327579,1771003840778,-500.0,0.00017999,2]
[405327580,1771003840787,-169.34729321,0.00017999,2]
[405327581,1771003840797,-500.0,0.00017999,2]
[405327583,1771003840806,-266.15062374,0.00017999,2]
[405327584,1771003840817,-500.0,0.00017999,2]
[405327585,1771003840826,-500.0,0.00017999,2]
[405327586,1771003840836,-500.0,0.00017999,2]
[405327587,1771003840845,-500.0,0.00017999,2]
[405327588,1771003840855,-500.0,0.00017999,2]
[405327589,1771003840864,-500.0,0.00017999,2]
[405327590,1771003840874,-500.0,0.00017999,2]
[405327591,1771003840883,-500.0,0.00017999,2]
[405327592,1771003840893,-500.0,0.00017999,2]
[405327593,1771003840902,-500.0,0.00017999,2]
[405327594,1771003840912,-500.0,0.00017999,2]
[405327595,1771003840924,-500.0,0.00017999,2]
[405327596,1771003840933,-500.0,0.00017999,2]
[405327597,1771003840943,-497.65015297,0.00017999,2]
[405327598,1771003840952,-500.0,0.00017999,2]
[405327599,1771003840962,-500.0,0.00017999,2]
[405327600,1771003840971,-500.0,0.00017999,2]
[405327601,1771003840981,-500.0,0.00017999,2]
[405327602,1771003840991,-500.0,0.00017999,2]
[405327603,1771003841000,-500.0,0.00017999,2]
[405327604,1771003841010,-500.0,0.00017999,2]
[405327605,1771003841020,-500.0,0.00017999,2]
[405327606,1771003841030,-500.0,0.00017999,2]
[405327607,1771003841040,-500.0,0.00017999,2]
[405327608,1771003841049,-277.58394545,0.00017999,2]
[405327609,1771003841058,-500.0,0.00017999,2]
[405327610,1771003841068,-150.0,0.00017999,2]
[405327611,1771003841076,-500.0,0.00017999,2]
[405327612,1771003841086,-500.0,0.00017999,2]
[405327613,1771003841095,-213.80721465,0.00017999,2]
[405327614,1771003841105,-1949200.01438942,0.00018,2]
[405327615,1771003841114,-209.18058672,0.00018,2]
[405327616,1771003841123,-263.0,0.00018,2]
[405327617,1771003841133,-1041805.96745363,0.00018,2]
[405327618,1771003841175,-619.68403073,0.00018,2]
[405327619,1771003841454,-567.72545203,0.00018,2]
[405327620,1771003841466,-11983.57125136,0.00018,2]
[405327621,1771003841542,-2784.03994496,0.00018,2]
[405327622,1771003841554,-1408.78919843,0.00018,2]
[405327643,1771003845001,-1693.19277323,0.00018,2]
[405327658,1771003846283,-3460.96157395,0.00018,2]
[405327670,1771003846445,-2300.50000032,0.00018,2]
[405327671,1771003846458,-1398.52710922,0.00018,2]
[405327743,1771003951779,1105.913,6.54e-05,2]
[405327756,1771004102733,-151.0,6.637e-05,2]
[405327757,1771004102758,-250.0,6.638e-05,2]
[405327758,1771004102782,-150.0,6.638e-05,2]
[405327759,1771004102811,-300.0,6.638e-05,2]
[405327760,1771004102835,-300.0,6.638e-05,2]
[405327761,1771004102859,-1200.0,6.638e-05,2]
[405327762,1771004102883,-500.0,6.639e-05,2]
[405327763,1771004102912,-500.0,6.639e-05,2]
[405327764,1771004102938,-500.0,6.639e-05,2]
[405327765,1771004102962,-500.0,6.639e-05,2]
[405327766,1771004102987,-250.0,6.639e-05,2]
[405327767,1771004103011,-500.0,6.639e-05,2]
[405327768,1771004103047,-500.0,6.639e-05,2]
[405327769,1771004103071,-500.0,6.639e-05,2]
[405327770,1771004103094,-500.0,6.639e-05,2]
[405327771,1771004103119,-500.0,6.639e-05,2]
[405327772,1771004103142,-300.0,6.639e-05,2]
[405327773,1771004103166,-500.0,6.639e-05,2]
[405327774,1771004103193,-500.0,6.639e-05,2]
[405327775,1771004103219,-470.77436779,6.639e-05,2]
[405327776,1771004103244,-34046.27413047,6.639e-05,2]
[405327777,1771004103271,-56081.95150174,6.64e-05,2]
[405327795,1771004120410,221.72,6.6e-05,2]
[405327796,1771004164006,1148.14,6.141e-05,2]
[405327797,1771004164212,1148.14,6.279e-05,2]
[405327798,1771004164438,1148.14,6.418e-05,2]
[405327799,1771004164666,1148.14,6.556e-05,2]
[405327817,1771004243498,1993858.087,6.539e-05,2]
[405327820,1771004342217,300.0,6.538e-05,2]
[405327821,1771004342336,150.0,6.538e-05,2]
[405327822,1771004342971,-4000.0,6.539e-05,2]
[405327823,1771004343168,300.0,6.538e-05,2]
[405327831,1771004401859,300.0,6.538e-05,2]
[405327832,1771004401892,1200.0,6.538e-05,2]
[405327847,1771004466678,212.09,6.5e-05,2]
[405327855,1771004482956,175.91,5.545e-05,2]
[405327856,1771004493078,854.843,6.408e-05,2]
[405327858,1771004522307,150.0,6.538e-05,2]
[405327859,1771004523005,300.0,6.538e-05,2]
[405327862,1771004572161,-1930.47210275,6.539e-05,2]
[405327863,1771004572621,-1273.03725037,6.539e-05,2]
[405327864,1771004572649,-621.76957416,6.539e-05,2]
[405327865,1771004572677,-409.35819961,6.539e-05,2]
[405327866,1771004572709,-391.67995172,6.539e-05,2]
[405327867,1771004572740,-207.0,6.539e-05,2]
[405327905,1771004909473,-1500.0,6.639e-05,2]
[405327972,1771005033780,-740.4042289,6.639e-05,2]
[405327973,1771005033790,-600.0,6.639e-05,2]
[405327974,1771005033800,-207.0,6.639e-05,2]
[405327975,1771005033810,-1148.14,6.695e-05,2]
[405327976,1771005033819,-1989991.10277361,6.83e-05,2]
[405327977,1771005033843,-843231.77687703,6.83e-05,2]
[405327978,1771005033855,-59136.8638244,6.83e-05,2]
[405327979,1771005033897,-253.83271447,6.83e-05,2]
[405327981,1771005037448,-200.0,6.829e-05,2]
[405327982,1771005037459,-500.0,6.829e-05,2]
[405327983,1771005037468,-250.0,6.829e-05,2]
[405327984,1771005037478,-170.80866152,6.829e-05,2]
[405327985,1771005037488,-500.0,6.829e-05,2]
[405327986,1771005037498,-500.0,6.829e-05,2]
[405327987,1771005037508,-500.0,6.829e-05,2]
[405327988,1771005037518,-500.0,6.829e-05,2]
[405327989,1771005037527,-500.0,6.829e-05,2]
[405327990,1771005037536,-500.0,6.829e-05,2]
[405327991,1771005037547,-500.0,6.829e-05,2]
[405327992,1771005037557,-500.0,6.829e-05,2]
[405327993,1771005037568,-500.0,6.829e-05,2]
[405327994,1771005037576,-500.0,6.829e-05,2]
[405327995,1771005037586,-500.0,6.829e-05,2]
[405327996,1771005037596,-500.0,6.829e-05,2]
[405327997,1771005037605,-500.0,6.829e-05,2]
[405327998,1771005037615,-500.0,6.829e-05,2]
[405327999,1771005037624,-500.0,6.829e-05,2]
[405328000,1771005037635,-500.0,6.829e-05,2]
[405328001,1771005037645,-500.0,6.829e-05,2]
[405328002,1771005037655,-500.0,6.829e-05,2]
[405328003,1771005037664,-500.0,6.829e-05,2]
[405328004,1771005037673,-500.0,6.829e-05,2]
[405328005,1771005037683,-500.0,6.829e-05,2]
[405328006,1771005037693,-500.0,6.829e-05,2]
[405328007,1771005037702,-500.0,6.829e-05,2]
[405328008,1771005037711,-500.0,6.829e-05,2]
[405328009,1771005037720,-500.0,6.829e-05,2]
[405328010,1771005037729,-500.0,6.829e-05,2]
[405328011,1771005037738,-500.0,6.829e-05,2]
[405328012,1771005037747,-500.0,6.829e-05,2]
[405328013,1771005037756,-500.0,6.829e-05,2]
[405328014,1771005037765,-500.0,6.829e-05,2]
[405328015,1771005037774,-500.0,6.829e-05,2]
[405328016,1771005037783,-500.0,6.829e-05,2]
[405328017,1771005037792,-500.0,6.829e-05,2]
[405328018,1771005037801,-500.0,6.829e-05,2]
[405328019,1771005037810,-500.0,6.829e-05,2]
[405328020,1771005037819,-500.0,6.829e-05,2]
[405328021,1771005037829,-500.0,6.829e-05,2]
[405328022,1771005037838,-500.0,6.829e-05,2]
[405328023,1771005037847,-500.0,6.829e-05,2]
[405328024,1771005037857,-500.0,6.829e-05,2]
[405328025,1771005037866,-500.0,6.829e-05,2]
[405328026,1771005037875,-500.0,6.829e-05,2]
[405328027,1771005037884,-500.0,6.829e-05,2]
[405328028,1771005037894,-500.0,6.829e-05,2]
[405328030,1771005037903,-500.0,6.829e-05,2]
[405328032,1771005037912,-500.0,6.829e-05,2]
[405328034,1771005037923,-500.0,6.829e-05,2]
[405328036,1771005037933,-500.0,6.829e-05,2]
[405328037,1771005037941,-500.0,6.829e-05,2]
[405328038,1771005037951,-500.0,6.829e-05,2]
[405328039,1771005037960,-500.0,6.829e-05,2]
[405328040,1771005037971,-500.0,6.829e-05,2]
[405328041,1771005037980,-500.0,6.829e-05,2]
[405328042,1771005037989,-500.0,6.829e-05,2]
[405328043,1771005038000,-478850.65141049,6.83e-05,2]
[405328044,1771005038009,-1148.14,6.833e-05,2]
[405328045,1771005038018,-300.0,6.929e-05,2]
[405328046,1771005038028,-1200.0,6.929e-05,2]
[405328047,1771005038037,-10606.69,6.93e-05,2]
[405328048,1771005038047,-1148.14,6.972e-05,2]
[405328049,1771005038056,-15428.07,6.974e-05,2]
[405328050,1771005038066,-150.0,6.998e-05,2]
[405328051,1771005038077,-1000.0,6.998e-05,2]
[405328052,1771005038088,-414984.96,6.999e-05,2]
[405328053,1771005038098,-13452.83,7.016e-05,2]
[405328054,1771005038108,-2853.15567969,7.016e-05,2]
[405328055,1771005038117,-1148.14,7.11e-05,2]
[405328056,1771005038127,-166.66,7.236e-05,2]
[405328057,1771005038137,-1148.14,7.249e-05,2]
[405328058,1771005038146,-9999.99,7.252e-05,2]
[405328059,1771005038156,-6106.16,7.252e-05,2]
[405328060,1771005038165,-9999.99,7.252e-05,2]
[405328061,1771005038174,-150.99,7.252e-05,2]
[405328062,1771005038183,-999.99,7.252e-05,2]
[405328063,1771005038194,-9999.99,7.252e-05,2]
[405328064,1771005038204,-299.99,7.252e-05,2]
[405328065,1771005038214,-193.0,7.303e-05,2]
[405328066,1771005038223,-250.0,7.303e-05,2]
[405328067,1771005038233,-250.0,7.303e-05,2]
[405328068,1771005038242,-250.0,7.303e-05,2]
[405328069,1771005038252,-1148.14,7.387e-05,2]
[405328070,1771005038261,-1551.74,7.473e-05,2]
[405328071,1771005038271,-166.66,7.474e-05,2]
[405328072,1771005038280,-1148.14,7.526e-05,2]
[405328073,1771005038290,-420.0,7.622e-05,2]
[405328074,1771005038299,-1680.0,7.622e-05,2]
[405328075,1771005038309,-1148.14,7.664e-05,2]
[405328076,1771005038318,-255.0,7.698e-05,2]
[405328077,1771005038328,-166.66,7.713e-05,2]
[405328078,1771005038337,-1148.14,7.803e-05,2]
[405328079,1771005038347,-1148.14,7.941e-05,2]
[405328080,1771005038356,-166.66,7.952e-05,2]
[405328081,1771005038366,-1148.14,8.08e-05,2]
[405328082,1771005038375,-166.66,8.191e-05,2]
[405328083,1771005038385,-1148.14,8.218e-05,2]
[405328084,1771005038396,-1000.0,8.219e-05,2]
[405328085,1771005038405,-422.47,8.219e-05,2]
[405328086,1771005038415,-1148.14,8.357e-05,2]
[405328087,1771005038424,-587.0,8.384e-05,2]
[405328088,1771005038435,-2351.0,8.384e-05,2]
[405328089,1771005038445,-166.66,8.43e-05,2]
[405328090,1771005038455,-433.0,8.468e-05,2]
[405328091,1771005038465,-1148.14,8.496e-05,2]
[405328092,1771005038475,-1148.14,8.634e-05,2]
[405328093,1771005038485,-2332.30159566,8.664e-05,2]
[405328094,1771005038495,-2500.0,8.664e-05,2]
[405328095,1771005038505,-878.1502,8.664e-05,2]
[405328096,1771005038515,-422.47,8.676e-05,2]
[405328097,1771005038524,-250.0,8.772e-05,2]
[405328098,1771005038533,-1148.14,8.773e-05,2]
[405328099,1771005038544,-32832.125,8.807e-05,2]
[405328100,1771005038553,-6899.81,8.813e-05,2]
[405328101,1771005038562,-400.0,8.9e-05,3]
[405328102,1771005038572,-800.0,9e-05,3]
[405328103,1771005038581,-422.47,9.132e-05,2]
[405328104,1771005038592,-502.4210461,9.223e-05,2]
[405328105,1771005038602,-500.0,9.223e-05,2]
[405328106,1771005038612,-500.0,9.223e-05,2]
[405328107,1771005038622,-500.0,9.223e-05,2]
[405328108,1771005038632,-823.0,9.223e-05,2]
[405328109,1771005038642,-1986.0,9.223e-05,2]
[405328110,1771005038652,-1000.0,9.247e-05,2]
[405328111,1771005038661,-736.0,9.315e-05,2]
[405328112,1771005038670,-422.47,9.589e-05,2]
[405328113,1771005038680,-1000.0,9.771e-05,2]
[405328114,1771005038689,-151.0,0.0001,2]
[405328115,1771005038699,-151.0,0.0001,2]
[405328116,1771005038708,-151.0,0.0001,2]
[405328117,1771005038718,-151.0,0.0001,2]
[405328118,1771005038728,-151.0,0.0001,2]
[405328119,1771005038739,-151.0,0.0001,2]
[405328120,1771005038749,-151.0,0.0001,2]
[405328121,1771005038759,-151.0,0.0001,2]
[405328122,1771005038770,-151.0,0.0001,2]
[405328123,1771005038780,-151.0,0.0001,2]
[405328124,1771005038789,-151.0,0.0001,2]
[405328125,1771005038799,-151.0,0.0001,2]
[405328126,1771005038809,-151.0,0.0001,2]
[405328127,1771005038818,-151.0,0.0001,2]
[405328128,1771005038828,-151.0,0.0001,2]
[405328129,1771005038836,-151.0,0.0001,2]
[405328130,1771005038846,-151.0,0.0001,2]
[405328131,1771005038856,-151.0,0.0001,2]
[405328132,1771005038865,-151.0,0.0001,2]
[405328133,1771005038875,-153.95643455,0.0001,2]
[405328134,1771005038885,-422.47,0.00010046,2]
[405328135,1771005038894,-431.0,0.00010246,2]
[405328136,1771005038904,-1000.0,0.00010274,2]
[405328137,1771005038913,-1500.0,0.00010318,2]
[405328138,1771005038925,-422.47,0.00010502,2]
[405328139,1771005038939,-10477.38,0.0001078,2]
[405328140,1771005038948,-2000.0,0.00010866,2]
[405328141,1771005038958,-422.47,0.00010959,2]
[405328142,1771005038968,-150.0,0.00011032,7]
[405328143,1771005038979,-54512.12121754,0.00011099,2]
[405328144,1771005038989,-54512.12121754,0.00011099,2]
[405328145,1771005039002,-54512.12121754,0.00011099,2]
[405328146,1771005039011,-54512.12121754,0.00011099,2]
[405328147,1771005039021,-7799.95210217,0.00011099,2]
[405328148,1771005039031,-7799.95210211,0.00011099,2]
[405328149,1771005039041,-7799.95210211,0.00011099,2]
[405328150,1771005039051,-195.13356543,0.00011201,2]
[405328151,1771005039061,-1000.0,0.00011301,2]
[405328152,1771005039072,-500.0,0.00011414,2]
[405328153,1771005039082,-422.47,0.00011416,2]
[405328154,1771005039092,-7799.95210211,0.00011742,2]
[405328155,1771005039102,-54512.12121754,0.00011798,2]
[405328156,1771005039111,-422.47,0.00011872,2]
[405328157,1771005039121,-1000.0,0.00012329,2]
[405328158,1771005039131,-422.47,0.00012329,2]
[405328159,1771005039142,-500.0,0.00012357,2]
[405328160,1771005039152,-1000.0,0.00012499,2]
[405328161,1771005039162,-7799.95210211,0.00012768,2]
[405328162,1771005039172,-271.33,0.00012877,2]
[405328163,1771005039182,-160.0,0.00012893,2]
[405328164,1771005039191,-54512.12121754,0.00013018,2]
[405328165,1771005039202,-500.0,0.00013698,2]
[405328166,1771005039211,-500.0,0.00013698,2]
[405328167,1771005039220,-500.0,0.00013698,2]
[405328168,1771005039230,-500.0,0.00013698,2]
[405328169,1771005039239,-500.0,0.00013698,2]
[405328170,1771005039249,-500.0,0.00013698,2]
[405328171,1771005039258,-214.42188237,0.00013698,2]
[405328172,1771005039267,-558.67,0.00013698,2]
[405328173,1771005039277,-500.0,0.00013698,2]
[405328174,1771005039286,-500.0,0.00013698,2]
[405328175,1771005039295,-500.0,0.00013698,2]
[405328176,1771005039304,-500.0,0.00013698,2]
[405328177,1771005039314,-211.16078222,0.00013698,2]
[405328178,1771005039323,-500.0,0.00013698,2]
[405328179,1771005039333,-500.0,0.00013698,2]
[405328180,1771005039342,-155.8658331,0.00013698,2]
[405328181,1771005039351,-584.63,0.00013698,2]
[405328182,1771005039361,-584.63,0.00013698,2]
[405328183,1771005039370,-584.63,0.00013698,2]
[405328184,1771005039380,-584.63,0.00013698,2]
[405328185,1771005039390,-584.63,0.00013698,2]
[405328186,1771005039399,-200.0,0.00013699,2]
[405328187,1771005039409,-500.0,0.00013699,2]
[405328188,1771005039418,-1762.5,0.000137,2]
[405328189,1771005039428,-1762.5,0.000137,2]
[405328190,1771005039439,-1762.5,0.000137,2]
[405328191,1771005039449,-1762.5,0.000137,2]
[405328192,1771005039459,-1762.5,0.000137,2]
[405328193,1771005039468,-7799.95210211,0.00013795,2]
[405328194,1771005039478,-558.67,0.00013972,2]
[405328195,1771005039488,-54512.12121754,0.00014239,2]
[405328196,1771005039498,-558.67,0.00014246,2]
[405328197,1771005039508,-1000.0,0.00014247,2]
[405328198,1771005039517,-558.67,0.0001452,2]
[405328199,1771005039526,-558.68,0.00014794,2]
[405328200,1771005039536,-1500.0,0.00014795,2]
[405328201,1771005039545,-7799.95210211,0.00014821,2]
[405328202,1771005039555,-250.0,0.00015,2]
[405328203,1771005039565,-1378.266199,0.00015342,2]
[405328204,1771005039574,-54512.12121754,0.00015459,2]
[405328205,1771005039584,-7799.95210211,0.00015847,2]
[405328206,1771005039593,-584.63,0.00016626,2]
[405328207,1771005039603,-207.6449656,0.00016669,2]
[405328208,1771005039613,-54512.12121754,0.0001668,2]
[405328209,1771005039622,-202.81840748,0.00016799,5]
[405328210,1771005039631,-522.64508925,0.00016799,5]
[405328211,1771005039641,-500.0,0.00016799,5]
[405328212,1771005039650,-528.99656538,0.00016799,5]
[405328213,1771005039660,-500.0,0.00016799,5]
[405328214,1771005039669,-202.27978627,0.00016799,5]
[405328215,1771005039678,-7799.95210211,0.00016874,2]
[405328216,1771005039688,-300.0,0.00017,2]
[405328217,1771005039697,-1300.0,0.000176,6]
[405328218,1771005039707,-350.0,0.00017651,2]
[405328219,1771005039716,-350.0,0.00017664,2]
[405328220,1771005039726,-1700.0,0.000177,6]
[405328221,1771005039735,-350.0,0.00017723,2]
[405328222,1771005039745,-350.0,0.00017727,2]
[405328223,1771005039754,-10000.0,0.00017784,2]
[405328225,1771005039764,-2100.0,0.000178,6]
[405328227,1771005039774,-200.0,0.00017855,2]
[405328229,1771005039783,-200.0,0.00017856,2]
[405328231,1771005039792,-211.58217695,0.000179,2]